bitfinex-derivatives/quotes_SOLF0:USTF0_20250109
["timestamp","ask_amount","ask_price","bid_price","bid_amount"]
[1736408526090,10.60632172,190.3,190.19,2.6298]
[1736408526482,2.6282,190.32,190.2,10.60632172]
[1736408526682,2.6282,190.32,190.22,2.6294]
[1736408526886,10.60632172,190.33,190.2,10.60632172]
[1736408527089,2.6282,190.31,190.21,2.6295]
[1736408527281,10.60632172,190.33,190.2,10.60632172]
[1736408527682,10.60632172,190.36,190.23,10.60632172]
[1736408528893,2.6277,190.35,190.25,2.629]
[1736408529084,15.74,190.47,190.26,1.4936]
[1736408529388,0.92348589,190.41,190.3,10.60632172]
[1736408529583,10.60632172,190.39,190.27,14.39392172]
[1736408530289,11.65663156,190.42,190.3,10.60632172]
[1736408530490,0.92367085,190.41,190.3,10.60632172]
[1736408530993,2.6272,190.39,190.3,10.60632172]
[1736408531385,11.65663156,190.42,190.3,10.60632172]
[1736408531792,0.92366163,190.41,190.3,10.60632172]
[1736408532292,2.6271,190.4,190.3,10.60632172]
[1736408532994,2.6269,190.4,190.31,2.6282]
[1736408533291,11.65663156,190.42,190.3,10.60632172]
[1736408533493,1.05030984,190.42,190.33,10.60632172]
[1736408533792,1.05030984,190.42,190.34,1.5125]
[1736408534389,3.67700984,190.42,190.34,1.5125]
[1736408534588,1.05030984,190.42,190.34,1.5125]
[1736408534785,2.627,190.4,190.34,1.5125]
[1736408534988,11.65663156,190.42,190.34,1.5125]
[1736408535191,10.60632172,190.39,190.34,1.5125]
[1736408535486,1.05030984,190.42,190.27,3.7876]
[1736408535487,10.60632172,190.36,190.27,3.7876]
[1736408536094,2.6278,190.34,190.27,3.7876]
[1736408536588,2.6281,190.32,190.27,3.7876]
[1736408536799,10.60632172,190.33,190.27,1.9505]
[1736408537091,10.60632172,190.33,190.22,1.8758]
[1736408537292,10.60632172,190.4,190.22,3.8803]
[1736408537293,16.98746183,190.35,190.22,3.8803]
[1736408537893,16.98746183,190.38,190.22,20.86776183]
[1736408538196,2.6279,190.33,190.24,2.629]
[1736408538491,16.98746183,190.38,190.22,20.86776183]
[1736408539297,1.05030984,190.42,190.22,20.86776183]
[1736408539298,16.98746183,190.41,190.25,16.98746183]
[1736408539593,2.6271,190.39,190.3,2.6282]
[1736408539794,2.6271,190.39,190.31,5.382]
[1736408540096,2.6282,190.31,190.23,2.6293]
[1736408540285,16.98746183,190.35,190.26,1.5453]
[1736408541697,2.6282,190.31,190.26,1.5453]
[1736408542398,2.628,190.33,190.26,1.5453]
[1736408542696,16.98746183,190.41,190.26,1.5453]
[1736408543194,1.05030984,190.42,190.28,16.98746183]
[1736408543897,3.67700984,190.42,190.34,2.6277]
[1736408544097,3.67700984,190.42,190.35,5.2956]
[1736408544792,1.05030984,190.42,190.35,5.2956]
[1736408544990,2.0266,190.54,190.35,5.2956]
[1736408545188,16.98746183,190.52,190.35,5.2956]
[1736408545393,0.92400054,190.51,190.35,5.2956]
[1736408545590,16.98746183,190.49,190.35,5.2956]
[1736408545991,16.98746183,190.49,190.38,2.6272]
[1736408546598,2.6261,190.46,190.38,2.6272]
[1736408548301,16.98746183,190.49,190.35,5.2956]
[1736408549302,16.98746183,190.49,190.4,2.6268]
[1736408549303,2.6258,190.48,190.4,2.6268]
[1736408549503,16.98746183,190.52,190.37,16.98746183]
[1736408549908,16.98746183,190.52,190.4,2.6268]
[1736408550810,2.6258,190.48,190.41,2.6268]
[1736408551402,2.6255,190.51,190.43,2.6264]
[1736408551709,16.98746183,190.52,190.44,1.5416]
[1736408552506,16.98746183,190.46,190.37,21.63577332]
[1736408552807,16.98746183,190.46,190.35,61.52347966]
[1736408552808,16.98746183,190.43,190.36,1.5416]
[1736408553508,16.98746183,190.46,190.36,1.5416]
[1736408555021,16.98746183,190.46,190.36,4.1689]
[1736408556018,16.98746183,190.46,190.36,1.5416]
[1736408558120,2.6263,190.45,190.36,1.5416]
[1736408558320,16.98746183,190.46,190.36,1.5416]
[1736408558615,2.6264,190.44,190.36,1.5416]
[1736408558819,16.98746183,190.46,190.36,1.5416]
[1736408559921,19.61356183,190.46,190.37,2.6273]
[1736408561417,2.6259,190.48,190.39,2.627]
[1736408561621,2.6259,190.48,190.36,1.5416]
[1736408561622,10.60244043,190.49,190.37,10.60244043]
[1736408561818,10.60244043,190.52,190.4,10.60244043]
[1736408562122,10.60244043,190.52,190.41,1.8884]
[1736408562419,13.22784043,190.52,190.43,2.6265]
[1736408562816,10.60244043,190.52,190.41,1.8884]
[1736408563018,10.60244043,190.52,190.41,4.5152]
[1736408563320,10.60244043,190.46,190.37,7.25985373]
[1736408564219,10.60244043,190.46,190.36,1.5416]
[1736408564419,13.22854043,190.46,190.36,1.5416]
[1736408565725,10.60244043,190.46,190.36,1.5416]
[1736408565924,10.60244043,190.43,190.36,1.5416]
[1736408567823,13.22904043,190.43,190.36,1.5416]
[1736408570331,13.22904043,190.43,190.36,4.169]
[1736408571433,10.60244043,190.4,190.32,7.25985373]
[1736408571633,10.60244043,190.37,190.32,7.25985373]
[1736408571834,2.6279,190.33,190.32,7.25985373]
[1736408572028,10.60244043,190.34,190.31,28.89562705]
[1736408572431,2.6279,190.33,190.31,28.89562705]
[1736408572835,2.6279,190.33,190.25,1.5748]
[1736408573226,2.628,190.32,190.25,1.5748]
[1736408573635,10.60244043,190.31,190.24,7.25985373]
[1736408573830,10.60244043,190.28,190.24,7.25985373]
[1736408574233,10.60244043,190.28,190.22,28.89562705]
[1736408575134,2.6284,190.3,190.22,28.89562705]
[1736408575535,2.6284,190.3,190.2,61.92727966]
[1736408575536,2.6284,190.3,190.2,4.2045]
[1736408576134,13.23084043,190.29,190.2,1.5748]
[1736408576537,10.60244043,190.29,190.2,1.5748]
[1736408577744,10.60244043,190.35,190.22,10.60244043]
[1736408577932,3.55058449,190.34,190.22,10.60244043]
[1736408578242,10.60244043,190.35,190.22,10.60244043]
[1736408579137,2.6278,190.34,190.25,2.629]
[1736408579339,2.6278,190.34,190.22,10.60244043]
[1736408579940,2.6278,190.34,190.24,2.629]
[1736408580143,10.60244043,190.35,190.22,10.60244043]
[1736408580444,92.60244043,190.38,190.25,10.60244043]
[1736408580638,92.60244043,190.38,190.28,10.60244043]
[1736408580839,82.0,190.38,190.29,1.5328]
[1736408581134,10.60244043,190.41,190.31,10.60244043]
[1736408581337,10.60244043,190.41,190.33,2.6278]
[1736408581939,13.22924043,190.41,190.33,2.6278]
[1736408582439,10.60244043,190.41,190.31,10.60244043]
[1736408582743,2.627,190.4,190.31,2.6281]
[1736408583239,10.60244043,190.44,190.31,10.60244043]
[1736408583737,10.60244043,190.44,190.35,2.6276]
[1736408583738,2.6266,190.43,190.35,2.6276]
[1736408583942,2.6266,190.43,190.31,10.60244043]
[1736408584449,2.6266,190.42,190.34,2.6277]
[1736408585543,2.6265,190.43,190.35,2.6275]
[1736408585743,10.60244043,190.44,190.31,10.60244043]
[1736408587144,2.6267,190.42,190.34,2.6277]
[1736408587948,2.6267,190.42,190.35,2.6276]
[1736408588340,2.6267,190.42,190.31,10.60244043]
[1736408589037,2.6267,190.42,190.34,2.6276]
[1736408589237,2.6267,190.42,190.31,10.60244043]
[1736408589437,10.60244043,190.44,190.37,2.6272]
[1736408590047,10.60244043,190.44,190.36,2.6275]
[1736408590243,10.60244043,190.44,190.31,17.86229416]
[1736408590447,1.9345,190.49,190.34,10.60244043]
[1736408590448,10.60244043,190.47,190.34,10.60244043]
[1736408590642,10.60244043,190.47,190.35,3.435]
[1736408591746,2.6265,190.44,190.36,2.6273]
[1736408592145,10.60244043,190.47,190.36,2.6273]
[1736408592346,2.6266,190.43,190.36,2.6273]
[1736408592952,2.6266,190.43,190.35,3.435]
[1736408593150,2.6266,190.43,190.37,2.6273]
[1736408594651,10.60244043,190.44,190.35,6.0626]
[1736408595348,10.60244043,190.44,190.38,2.6272]
[1736408596048,2.6262,190.45,190.35,3.435]
[1736408596249,10.60244043,190.47,190.4,2.6269]
[1736408596949,10.60244043,190.47,190.31,7.25985373]
[1736408596950,104.0,190.32,190.31,58.1277652]
[1736408597251,104.0,190.32,190.31,46.5095652]
[1736408597561,106.628,190.32,190.31,46.5095652]
[1736408598256,10.60244043,190.33,190.17,1.7224]
[1736408598450,10.60244043,190.34,190.17,1.7224]
[1736408598753,10.60244043,190.34,190.21,2.6295]
[1736408599554,10.60244043,190.34,190.21,13.23194043]
[1736408599750,1.05008925,190.46,190.24,10.60244043]
[1736408600054,10.60244043,190.38,190.24,10.60244043]
[1736408600647,10.60244043,190.38,190.26,2.6288]
[1736408600951,10.60244043,190.35,190.21,10.60244043]
[1736408601355,10.60244043,190.35,190.23,2.6293]
[1736408601955,10.60244043,190.32,190.18,13.76914043]
[1736408602357,10.60244043,190.29,190.18,3.1667]
[1736408602554,10.60244043,190.29,190.18,5.7965]
[1736408602753,10.60244043,190.26,190.18,3.1667]
[1736408603157,10.60244043,190.26,190.18,1.5486]
[1736408603358,10.60244043,190.26,190.12,10.60244043]
[1736408603853,10.60244043,190.26,190.15,10.60244043]
[1736408604055,10.60244043,190.29,190.2,2.6297]
[1736408604258,10.60244043,190.29,190.15,10.60244043]
[1736408604259,10.60244043,190.29,190.16,64.98093579]
[1736408604455,10.60244043,190.29,190.18,2.6299]
[1736408605857,27.39297094,190.38,190.18,2.6299]
[1736408606060,10.60244043,190.28,190.19,2.6298]
[1736408606450,10.60244043,190.28,190.16,64.98093579]
[1736408606649,10.60244043,190.28,190.2,2.6297]
[1736408607757,10.60244043,190.28,190.16,64.98093579]
[1736408607961,10.60244043,190.31,190.18,10.60244043]
[1736408608161,10.60244043,190.31,190.19,1.7423]
[1736408608454,10.60244043,190.31,190.23,2.6292]
[1736408608659,10.60244043,190.31,190.19,12.34474043]
[1736408609259,10.60244043,190.31,190.2,2.6296]
[1736408609659,13.23064043,190.31,190.2,2.6296]
[1736408610858,2.6285,190.29,190.19,12.34474043]
[1736408611358,2.6285,190.29,190.19,1.7423]
[1736408611664,10.60244043,190.28,190.19,1.7423]
[1736408611863,2.6289,190.26,190.17,1.7618]
[1736408612063,16.84053051,190.38,190.17,1.7618]
[1736408612264,2.6285,190.29,190.2,2.6296]
[1736408612761,10.60244043,190.31,190.17,1.7618]
[1736408613363,2.6286,190.28,190.17,1.7618]
[1736408614765,13.23104043,190.28,190.17,1.7618]
[1736408615166,2.6288,190.27,190.17,1.7618]
[1736408615361,10.60244043,190.28,190.17,1.7618]
[1736408616265,13.23104043,190.28,190.19,2.6298]
[1736408616663,10.60244043,190.31,190.22,2.6294]
[1736408616861,10.60244043,190.31,190.19,10.60244043]
[1736408617355,10.60244043,190.31,190.23,2.6293]
[1736408617559,10.60244043,190.31,190.19,10.60244043]
[1736408618264,13.23074043,190.31,190.22,2.6294]
[1736408618464,13.23074043,190.31,190.19,10.60244043]
[1736408618664,13.23074043,190.31,190.23,2.6293]
[1736408618864,10.60244043,190.31,190.23,2.6293]
[1736408619267,10.60244043,190.31,190.22,2.6294]
[1736408619566,13.23064043,190.31,190.22,2.6294]
[1736408619766,10.60244043,190.31,190.23,2.6292]
[1736408620469,2.6279,190.33,190.24,2.629]
[1736408621467,10.60244043,190.34,190.19,10.60244043]
[1736408621667,10.60244043,190.34,190.23,2.6292]
[1736408622464,2.628,190.33,190.24,2.6291]
[1736408623060,13.23024043,190.34,190.25,2.629]
[1736408623256,10.60244043,190.34,190.25,2.629]
[1736408623656,2.628,190.33,190.24,2.6291]
[1736408623966,10.60244043,190.34,190.19,10.60244043]
[1736408624466,10.60244043,190.31,190.19,10.60244043]
[1736408625062,2.6284,190.3,190.2,2.6296]
[1736408625258,10.60244043,190.31,190.19,10.60244043]
[1736408625460,10.60244043,190.34,190.19,10.60244043]
[1736408626069,13.23034043,190.34,190.25,2.6289]
[1736408626273,13.23034043,190.34,190.22,10.60244043]
[1736408626568,13.23034043,190.34,190.23,1.7659]
[1736408627366,2.628,190.33,190.23,1.7659]
[1736408628164,2.628,190.33,190.25,2.629]
[1736408628368,10.60244043,190.34,190.23,1.7659]
[1736408628568,2.6281,190.32,190.23,1.7659]
[1736408629168,2.6281,190.32,190.24,2.6291]
[1736408631772,10.60244043,190.34,190.24,2.6291]
[1736408631972,10.60244043,190.34,190.23,4.3952]
[1736408631973,2.6282,190.31,190.23,4.3952]
[1736408632166,2.6282,190.31,190.23,1.7659]
[1736408632873,2.6282,190.31,190.22,10.60244043]
[1736408633074,2.6282,190.31,190.24,2.6291]
[1736408633373,2.6283,190.3,190.19,10.60244043]
[1736408633570,10.60244043,190.34,190.24,2.6291]
[1736408633971,2.6281,190.32,190.24,2.6291]
[1736408634372,10.60244043,190.34,190.25,2.629]
[1736408634569,11.65302613,190.37,190.25,10.60244043]
[1736408634774,11.65302613,190.37,190.26,3.1281]
[1736408635271,14.28042613,190.37,190.29,2.6284]
[1736408637372,2.6275,190.36,190.28,2.6285]
[1736408638574,11.65302613,190.37,190.26,4.7803]
[1736408638775,2.6278,190.34,190.26,4.7803]
[1736408639175,10.60244043,190.34,190.26,4.7803]
[1736408639372,2.6282,190.31,190.2,21.79543587]
[1736408639576,10.60244043,190.34,190.21,3.2614]
[1736408639774,10.60244043,190.34,190.23,2.6293]
[1736408639975,2.6282,190.31,190.23,2.6293]
[1736408640575,10.60244043,190.34,190.21,3.2614]
[1736408640777,2.6279,190.33,190.25,2.629]
[1736408641075,10.60244043,190.36,190.22,10.60244043]
[1736408641276,10.60244043,190.36,190.25,10.60244043]
[1736408642274,13.22994043,190.36,190.28,2.6285]
[1736408642573,13.22994043,190.36,190.25,10.60244043]
[1736408643374,1.0505857,190.37,190.31,2.6282]
[1736408643577,1.0505857,190.37,190.28,10.60244043]
[1736408643774,1.0505857,190.37,190.29,4.7534]
[1736408644776,82.04,190.57,190.34,10.60244043]
[1736408644980,8.67223729,190.56,190.4,10.60244043]
[1736408645182,10.60244043,190.52,190.41,1.6712]
[1736408646080,2.6257,190.49,190.41,1.6712]
[1736408646784,2.6259,190.48,190.41,1.6712]
[1736408646979,10.60244043,190.49,190.41,1.6712]
[1736408647386,2.626,190.47,190.41,1.6712]
[1736408647581,10.60244043,190.49,190.41,1.6712]
[1736408648384,13.22814043,190.49,190.41,1.6712]
[1736408649287,10.60244043,190.49,190.41,1.6712]
[1736408650387,10.60244043,190.49,190.41,4.298]
[1736408652092,10.60244043,190.49,190.41,1.6712]
[1736408653394,2.6258,190.48,190.41,1.6712]
[1736408653792,10.60244043,190.49,190.41,1.6712]
[1736408654494,2.6258,190.48,190.41,1.6712]
[1736408654994,13.22814043,190.49,190.41,1.6712]
[1736408655495,2.6259,190.48,190.39,1.6037]
[1736408655796,2.6259,190.48,190.39,4.2307]
[1736408656596,10.60244043,190.46,190.31,1.9318]
[1736408656791,10.60244043,190.43,190.32,13.96724043]
[1736408657694,10.60244043,190.43,190.35,2.6275]
[1736408657893,10.60244043,190.43,190.32,13.96724043]
[1736408658098,10.60244043,190.43,190.37,2.6273]
[1736408658287,1.5301,190.49,190.32,13.96724043]
[1736408658492,10.60244043,190.46,190.35,10.60244043]
[1736408658696,10.60244043,190.46,190.38,2.6271]
[1736408661994,10.60244043,190.46,190.4,2.6269]
[1736408663098,10.60244043,190.46,190.39,2.627]
[1736408663299,2.6263,190.45,190.35,10.60244043]
[1736408663599,10.60244043,190.46,190.35,10.60244043]
[1736408663900,10.60244043,190.46,190.38,2.6272]
[1736408664292,10.60244043,190.46,190.35,10.60244043]
[1736408664496,10.60244043,190.46,190.38,2.6271]
[1736408664800,10.60244043,190.49,190.38,10.60244043]
[1736408665097,10.60244043,190.49,190.42,2.6265]
[1736408665297,10.60244043,190.49,190.39,1.8688]
[1736408665594,10.60244043,190.49,190.43,2.6265]
[1736408665896,10.60244043,190.49,190.4,1.6203]
[1736408667601,2.6261,190.46,190.4,1.6203]
[1736408667797,10.60244043,190.49,190.4,1.6203]
[1736408668400,13.22824043,190.49,190.4,1.6203]
[1736408669402,10.60244043,190.49,190.4,1.6203]
[1736408669601,10.60244043,190.49,190.4,3.4647]
[1736408670399,2.6257,190.49,190.4,3.4647]
[1736408670598,10.60244043,190.49,190.4,3.4647]
[1736408671400,2.6261,190.46,190.4,3.4647]
[1736408672202,2.626,190.47,190.4,3.4647]
[1736408673307,10.60244043,190.49,190.4,3.4647]
[1736408673508,2.6259,190.48,190.4,6.0915]
[1736408674509,2.6259,190.48,190.4,3.4647]
[1736408674812,10.60244043,190.49,190.4,1.6203]
[1736408675014,1.06,190.58,190.4,1.6203]
[1736408675206,10.60244043,190.49,190.4,1.6203]
[1736408676806,2.6261,190.46,190.4,1.6203]
[1736408678310,10.60244043,190.49,190.4,1.6203]
[1736408678511,2.6259,190.48,190.4,1.6203]
[1736408679113,2.6259,190.48,190.4,4.2472]
[1736408679312,10.60244043,190.49,190.4,1.6203]
[1736408679514,13.22824043,190.49,190.4,1.6203]
[1736408679906,13.22824043,190.49,190.41,2.6267]
[1736408680309,10.60244043,190.52,190.4,1.6203]
[1736408680517,10.60244043,190.52,190.43,2.6265]
[1736408680711,10.60244043,190.52,190.41,12.53734043]
[1736408682116,2.6255,190.5,190.42,2.6266]
[1736408683313,2.6255,190.5,190.41,12.53734043]
[1736408683613,10.60244043,190.52,190.43,2.6265]
[1736408683815,2.6254,190.51,190.43,2.6265]
[1736408684916,10.60244043,190.52,190.41,1.9349]
[1736408685114,10.60244043,190.49,190.41,1.9349]
[1736408685421,6.78392757,190.46,190.4,8.40422757]
[1736408686414,2.6262,190.45,190.4,1.6203]
[1736408686811,6.78392757,190.44,190.39,1.8688]
[1736408687215,2.6266,190.43,190.39,1.8688]
[1736408687421,0.4688,190.56,190.39,1.8688]
[1736408687718,10.60249848,190.5,190.39,1.8688]
[1736408689916,2.626,190.47,190.39,4.4959]
[1736408691721,2.626,190.47,190.39,1.8688]
[1736408692020,2.6258,190.49,190.39,1.8688]
[1736408692724,2.6258,190.49,190.41,2.6268]
[1736408693317,10.60249848,190.5,190.39,1.8688]
[1736408693522,2.6254,190.51,190.43,2.6265]
[1736408693817,10.60249848,190.53,190.43,2.6265]
[1736408694515,2.6254,190.52,190.43,2.6265]
[1736408694721,10.60249848,190.53,190.42,1.5524]
[1736408694922,2.6258,190.49,190.42,1.5524]
[1736408697018,2.6259,190.48,190.42,1.5524]
[1736408698718,10.60249848,190.53,190.42,1.5524]
[1736408699018,2.6257,190.49,190.42,4.179]
[1736408699420,2.6254,190.51,190.44,2.6263]
[1736408700426,2.6254,190.52,190.44,2.6263]
[1736408700923,10.60249848,190.53,190.44,2.6263]
[1736408701130,1.04948312,190.57,190.47,10.60249848]
[1736408701627,3.67408312,190.57,190.47,10.60249848]
[1736408701821,10.60249848,190.55,190.44,10.60249848]
[1736408702022,10.60249848,190.52,190.42,1.5524]
[1736408702221,10.60249848,190.49,190.44,7.24279178]
[1736408702628,2.6262,190.46,190.44,7.24279178]
[1736408703424,2.6262,190.46,190.39,1.8688]
[1736408703425,10.60249848,190.49,190.39,4.4957]
[1736408704332,10.60249848,190.49,190.39,11.73849178]
[1736408705133,2.6258,190.48,190.39,11.73849178]
[1736408706233,2.6256,190.5,190.42,2.6266]
[1736408706730,10.60249848,190.55,190.44,10.60249848]
[1736408706924,2.625,190.54,190.45,2.6262]
[1736408707328,1.04948312,190.57,190.47,10.60249848]
[1736408707726,3.67408312,190.57,190.48,4.5505]
[1736408708230,1.04948312,190.57,190.48,4.5505]
[1736408708436,3.67408312,190.57,190.48,4.5505]
[1736408709440,1.04948312,190.57,190.5,10.60249848]
[1736408710240,10.60249848,190.61,190.5,10.60249848]
[1736408710441,10.60249848,190.61,190.52,2.6253]
[1736408711835,10.60249848,190.61,190.5,13.22789848]
[1736408712035,1.5272,190.69,190.5,13.22789848]
[1736408712232,10.60249848,190.62,190.5,10.60249848]
[1736408713245,10.60249848,190.62,190.51,2.6254]
[1736408713443,10.60249848,190.59,190.48,1.9247]
[1736408714846,10.60249848,190.65,190.53,10.60249848]
[1736408716341,10.60249848,190.65,190.54,3.4468]
[1736408717334,10.60249848,190.59,190.48,1.9247]
[1736408717539,10.60249848,190.59,190.48,5.3636]
[1736408717739,10.60249848,190.59,190.49,7.24279178]
[1736408718446,10.60249848,190.56,190.49,7.24279178]
[1736408718645,10.60249848,190.56,190.48,5.3636]
[1736408719036,10.60249848,190.59,190.48,5.3636]
[1736408719443,10.60249848,190.59,190.52,2.6252]
[1736408719746,10.60249848,190.62,190.52,2.6252]
[1736408720439,10.60249848,190.62,190.53,2.625]
[1736408721136,10.60249848,190.62,190.54,2.625]
[1736408721446,10.60249848,190.62,190.5,10.60249848]
[1736408721942,10.60249848,190.62,190.53,2.6251]
[1736408723848,10.60249848,190.59,190.49,2.6256]
[1736408724347,10.60249848,190.59,190.49,10.60249848]
[1736408725150,10.60249848,190.59,190.48,5.3636]
[1736408725349,10.60249848,190.56,190.48,5.3636]
[1736408726351,10.60249848,190.56,190.43,10.60249848]
[1736408726552,10.60249848,190.56,190.44,1.8361]
[1736408727350,10.60249848,190.56,190.45,2.6262]
[1736408731354,10.60249848,190.53,190.44,1.8361]
[1736408732451,10.60249848,190.53,190.44,4.4624]
[1736408733455,10.60249848,190.53,190.45,2.6262]
[1736408734656,10.60249848,190.56,190.45,2.6262]
[1736408735359,10.60249848,190.53,190.44,1.8361]
[1736408735558,10.60249848,190.5,190.44,1.8361]
[1736408735960,10.60249848,190.5,190.4,1.8595]
[1736408736151,10.60249848,190.47,190.38,7.24279178]
[1736408736464,2.6265,190.44,190.38,7.24279178]
[1736408737056,13.22899848,190.44,190.38,7.24279178]
[1736408737357,13.22899848,190.44,190.36,2.6275]
[1736408738458,10.60249848,190.47,190.35,5.0364]
[1736408738955,2.6262,190.45,190.38,2.6272]
[1736408739157,10.60249848,190.47,190.35,5.0364]
[1736408739558,2.6264,190.45,190.35,5.0364]
[1736408739758,10.60249848,190.44,190.34,7.24279178]
[1736408739962,10.60249848,190.44,190.33,7.24279178]
[1736408740258,2.6267,190.42,190.33,7.24279178]
[1736408740454,10.60249848,190.47,190.34,10.60249848]
[1736408740768,13.22849848,190.47,190.38,2.6271]
[1736408741160,1.058,190.49,190.38,1.9307]
[1736408741364,10.60249848,190.53,190.4,10.60249848]
[1736408741564,0.92514278,190.52,190.4,10.60249848]
[1736408741965,2.6256,190.5,190.42,2.6266]
[1736408742168,10.60249848,190.53,190.4,10.60249848]
[1736408742463,10.60249848,190.5,190.39,1.9563]
[1736408742664,10.60249848,190.47,190.38,3.4617]
[1736408742859,10.60249848,190.47,190.35,7.24279178]
[1736408743056,2.6265,190.43,190.35,7.24279178]
[1736408743467,2.6265,190.43,190.35,9.87039178]
[1736408743770,2.6265,190.43,190.35,2.6276]
[1736408745269,2.6265,190.43,190.36,2.6275]
[1736408746268,10.60249848,190.47,190.34,10.60249848]
[1736408746465,2.6263,190.45,190.37,10.60249848]
[1736408746869,10.60249848,190.5,190.37,10.60249848]
[1736408747272,2.6259,190.48,190.39,2.6269]
[1736408747471,2.6259,190.48,190.4,10.60249848]
[1736408747771,2.6259,190.48,190.4,13.22939848]
[1736408748073,2.6257,190.49,190.4,10.60249848]
[1736408748267,10.60249848,190.53,190.41,1.8913]
[1736408748468,0.92523463,190.52,190.41,3.4519]
[1736408748769,2.6252,190.53,190.43,10.60249848]
[1736408749165,2.625,190.55,190.47,2.626]
[1736408749578,1.0593,190.59,190.46,10.60249848]
[1736408749784,0.92537806,190.58,190.46,10.60249848]
[1736408750079,2.6244,190.59,190.49,2.6257]
[1736408750284,2.6244,190.59,190.49,10.60249848]
[1736408750480,10.60249848,190.63,190.5,3.5194]
[1736408750886,0.92542724,190.62,190.5,3.5194]
[1736408751277,0.92542724,190.62,190.5,20.45381189]
[1736408751483,0.9302,190.66,190.5,20.45381189]
[1736408751784,2.6238,190.63,190.54,2.625]
[1736408752986,2.6238,190.63,190.53,2.6251]
[1736408753687,0.9302,190.66,190.53,2.6251]
[1736408753989,16.93441189,190.64,190.51,1.9364]
[1736408754289,2.6239,190.62,190.51,1.9364]
[1736408754491,0.9302,190.66,190.54,2.6249]
[1736408754785,2.6233,190.67,190.56,16.93441189]
[1736408754991,16.93441189,190.71,190.56,16.93441189]
[1736408755285,16.93441189,190.74,190.59,16.93441189]
[1736408755583,0.92563753,190.73,190.6,5.5344]
[1736408756081,2.6225,190.72,190.62,2.6239]
[1736408756279,2.6225,190.72,190.6,5.5344]
[1736408756477,1.9859,190.76,190.62,16.93441189]
[1736408756691,0.92585546,190.75,190.62,16.93441189]
[1736408756987,0.92585546,190.75,190.62,19.55821189]
[1736408757191,0.92585546,190.75,190.62,16.93441189]
[1736408757491,161.66390365,190.96,190.62,16.93441189]
[1736408757492,16.93441189,190.8,190.62,16.93441189]
[1736408757680,16.93441189,190.8,190.65,16.93441189]
[1736408758282,16.93441189,190.8,190.6,5.5344]
[1736408758489,16.93441189,190.8,190.62,16.93441189]
[1736408758689,2.6224,190.73,190.62,19.55821189]
[1736408758990,16.93441189,190.77,190.6,5.5344]
[1736408759393,16.93441189,190.77,190.62,16.93441189]
[1736408761191,2.6222,190.74,190.64,2.6236]
[1736408761386,16.93441189,190.77,190.62,16.93441189]
[1736408762191,82.9954,190.89,190.65,16.93441189]
[1736408762192,16.93441189,190.8,190.65,16.93441189]
[1736408762392,16.93441189,190.83,190.65,16.93441189]
[1736408762593,2.6216,190.79,190.69,2.6229]
[1736408762793,16.93441189,190.86,190.7,3.4789]
[1736408762993,0.92514253,190.85,190.71,16.93441189]
[1736408763197,3.54604253,190.84,190.75,2.6221]
[1736408763493,0.9244,190.88,190.74,16.93441189]
[1736408763797,1.0554,190.89,190.74,16.93441189]
[1736408763998,17.98981189,190.89,190.74,16.93441189]
[1736408764587,17.98981189,190.89,190.76,2.6218]
[1736408764892,17.98981189,190.89,190.74,16.93441189]
[1736408765094,17.98981189,190.89,190.7,3.4789]
[1736408765395,17.98981189,190.89,190.75,16.93441189]
[1736408765594,17.98981189,190.89,190.7,20.41331189]
[1736408765595,17.98981189,190.89,190.72,16.93441189]
[1736408765793,16.93441189,190.86,190.71,2.6225]
[1736408765997,16.93441189,190.86,190.7,3.4789]
[1736408766301,2.621,190.83,190.72,16.93441189]
[1736408766797,0.925,190.88,190.72,16.93441189]
[1736408767291,2.621,190.84,190.75,2.6221]
[1736408767493,0.925,190.88,190.72,16.93441189]
[1736408767699,16.93441189,190.86,190.7,3.4789]
[1736408767896,16.93441189,190.8,190.7,3.4789]
[1736408768195,16.93441189,190.8,190.69,1.8561]
[1736408768196,16.93441189,190.77,190.63,16.93441189]
[1736408768500,2.6221,190.75,190.66,2.6233]
[1736408768797,16.93441189,190.8,190.64,5.2922]
[1736408769001,2.6221,190.76,190.67,2.6232]
[1736408769300,16.93441189,190.8,190.64,5.2922]
[1736408769500,2.622,190.76,190.67,2.6232]